fUSD/lending_fUSD_20250120
["ID","MTS","AMOUNT","RATE_DAILY","PERIOD"]
[349656226,1737359445685,-500.0,0.00020319,2]
[349656227,1737359445694,-500.0,0.00020319,2]
[349656228,1737359445708,-500.0,0.00020319,2]
[349656229,1737359445717,-857.34,0.00020319,2]
[349656230,1737359445726,-500.0,0.00020319,2]
[349656231,1737359445734,-920.18,0.00020319,2]
[349656232,1737359445744,-500.0,0.00020319,2]
[349656233,1737359445754,-155.54175711,0.00020319,2]
[349656234,1737359445763,-904.7,0.00020319,2]
[349656235,1737359445773,-500.0,0.00020319,2]
[349656236,1737359445783,-500.0,0.00020319,2]
[349656237,1737359445793,-500.0,0.00020319,2]
[349656238,1737359445802,-500.0,0.00020319,2]
[349656239,1737359445811,-547.03,0.00020319,2]
[349656240,1737359445824,-500.0,0.00020319,2]
[349656241,1737359445836,-521.5,0.00020319,2]
[349656242,1737359445845,-674.17,0.00020319,2]
[349656243,1737359445854,-500.0,0.00020319,2]
[349656244,1737359445863,-986.2,0.00020319,2]
[349656245,1737359445872,-1227.55,0.00020319,2]
[349656246,1737359445881,-1198.63,0.00020319,2]
[349656247,1737359445890,-500.0,0.00020319,2]
[349656249,1737359445899,-618.51,0.00020319,2]
[349656250,1737359445908,-1043.44,0.00020319,2]
[349656251,1737359445918,-500.0,0.00020319,2]
[349656252,1737359445928,-1295.79,0.00020319,2]
[349656253,1737359445939,-500.0,0.00020319,2]
[349656254,1737359445951,-891.15,0.00020319,2]
[349656255,1737359445960,-500.0,0.00020319,2]
[349656256,1737359445970,-500.0,0.00020319,2]
[349656257,1737359445979,-500.0,0.00020319,2]
[349656258,1737359445988,-1542.54,0.00020319,2]
[349656259,1737359445997,-500.0,0.00020319,2]
[349656260,1737359446006,-868.61,0.00020319,2]
[349656261,1737359446015,-1199.92,0.00020319,2]
[349656262,1737359446024,-1570.7,0.00020319,2]
[349656265,1737359446033,-1171.48,0.00020319,2]
[349656267,1737359446042,-1179.9,0.00020319,2]
[349656270,1737359446052,-676.03,0.00020319,2]
[349656273,1737359446061,-1089.01,0.00020319,2]
[349656276,1737359446070,-1779.33,0.00020319,2]
[349656278,1737359446079,-1123.51,0.00020319,2]
[349656280,1737359446089,-824.59,0.00020319,2]
[349656282,1737359446099,-702.58,0.00020319,2]
[349656284,1737359446108,-1313.53,0.00020319,2]
[349656286,1737359446117,-500.0,0.00020319,2]
[349656288,1737359446127,-500.0,0.00020319,2]
[349656290,1737359446135,-918.87,0.00020319,2]
[349656292,1737359446145,-3920.49,0.00020319,2]
[349656294,1737359446154,-2465.53,0.00020319,2]
[349656296,1737359446163,-500.0,0.00020319,2]
[349656297,1737359446172,-500.0,0.00020319,2]
[349656298,1737359446181,-729.31,0.00020319,2]
[349656299,1737359446190,-4948.6,0.00020319,2]
[349656300,1737359446199,-500.0,0.00020319,2]
[349656301,1737359446207,-500.0,0.00020319,2]
[349656302,1737359446218,-500.0,0.00020319,2]
[349656303,1737359446228,-500.0,0.00020319,2]
[349656304,1737359446238,-500.0,0.00020319,2]
[349656305,1737359446247,-500.0,0.00020319,2]
[349656306,1737359446258,-2166.66,0.00020319,2]
[349656307,1737359446267,-6379.85,0.00020319,2]
[349656308,1737359446276,-1054.71,0.00020319,2]
[349656309,1737359446285,-2162.57532962,0.00020319,2]
[349656310,1737359446297,-2102.21999985,0.00020319,2]
[349656311,1737359446308,-2180.87467053,0.00020319,2]
[349656312,1737359446317,-1445.58,0.00020319,2]
[349656313,1737359446326,-500.0,0.00020319,2]
[349656314,1737359446337,-2274.48,0.00020319,2]
[349656315,1737359446346,-1936.82,0.00020319,2]
[349656316,1737359446355,-1198.54,0.00020319,2]
[349656317,1737359446364,-2588.21,0.00020319,2]
[349656318,1737359446373,-2696.65,0.00020319,2]
[349656319,1737359446382,-1011.45,0.00020319,2]
[349656320,1737359446391,-500.0,0.00020319,2]
[349656321,1737359446401,-1258.39,0.00020319,2]
[349656322,1737359446411,-1079.0,0.00020319,2]
[349656323,1737359446420,-1938.24532947,0.00020319,2]
[349656324,1737359446480,-500.0,0.00019497,2]
[349656325,1737359446491,-2380.63,0.00019771,2]
[349656326,1737359446501,-44.27467053,0.00020319,2]
[349656327,1737359446510,-500.0,0.00020319,2]
[349656328,1737359446520,-1473.34,0.00020319,2]
[349656329,1737359446529,-779.6,0.00020319,2]
[349656330,1737359446635,-817.79,0.00020319,2]
[349656331,1737359446644,-4398.49,0.00020319,2]
[349656332,1737359446654,-926.31,0.00020319,2]
[349656333,1737359446666,-500.0,0.00020319,2]
[349656334,1737359446675,-1203.2,0.00020319,2]
[349656335,1737359446684,-500.0,0.00020319,2]
[349656336,1737359446693,-710.98,0.00020319,2]
[349656337,1737359446702,-500.0,0.00020319,2]
[349656338,1737359446711,-2061.96,0.00020319,2]
[349656340,1737359446720,-1482.39,0.00020319,2]
[349656342,1737359446729,-805.2,0.00020319,2]
[349656344,1737359446738,-500.0,0.00020319,2]
[349656346,1737359446764,-548.96,0.00020319,2]
[349656348,1737359446773,-3448.0,0.00020319,2]
[349656350,1737359446782,-1177.2,0.00020319,2]
[349656352,1737359446791,-1792.51,0.00020319,2]
[349656355,1737359446800,-2000.07,0.00020319,2]
[349656357,1737359446810,-522.17809422,0.00020319,2]
[349656359,1737359446819,-951.51,0.00020319,2]
[349656361,1737359446828,-500.0,0.00020319,2]
[349656363,1737359446840,-1668.68,0.00020319,2]
[349656365,1737359446849,-500.0,0.00020319,2]
[349656367,1737359446858,-500.0,0.00020319,2]
[349656369,1737359446867,-894.2,0.00020319,2]
[349656371,1737359446878,-907.24,0.00020319,2]
[349656373,1737359446887,-2517.18,0.00020319,2]
[349656375,1737359446896,-884.91,0.00020319,2]
[349656377,1737359446905,-500.0,0.00020319,2]
[349656379,1737359446914,-500.0,0.00020319,2]
[349656381,1737359446923,-2474.52,0.00020319,2]
[349656382,1737359446932,-1054.83,0.00020319,2]
[349656384,1737359446941,-1387.21,0.00020319,2]
[349656387,1737359446951,-620.97,0.00020319,2]
[349656389,1737359446961,-500.0,0.00020319,2]
[349656391,1737359446971,-500.0,0.00020319,2]
[349656393,1737359446980,-500.0,0.00020319,2]
[349656394,1737359446989,-427.40889446,0.00020319,2]
[349656397,1737359446999,-500.0,0.00020319,2]
[349656398,1737359447008,-500.0,0.00020319,2]
[349656400,1737359447017,-681.24,0.00020319,2]
[349656402,1737359447026,-1169.54,0.00020319,2]
[349656404,1737359447036,-500.0,0.00020319,2]
[349656406,1737359447045,-500.0,0.0002032,2]
[349656408,1737359447054,-594.3,0.0002032,2]
[349656410,1737359447063,-500.0,0.0002032,2]
[349656412,1737359447072,-500.0,0.0002032,2]
[349656414,1737359447082,-500.0,0.0002032,2]
[349656416,1737359447092,-500.0,0.0002032,2]
[349656418,1737359447101,-572.24235337,0.0002032,2]
[349656420,1737359447111,-500.0,0.0002032,2]
[349656422,1737359447120,-746.35,0.0002032,2]
[349656424,1737359447131,-500.0,0.0002032,2]
[349656426,1737359447141,-500.0,0.0002032,2]
[349656428,1737359447150,-500.0,0.0002032,2]
[349656430,1737359447159,-500.0,0.0002032,2]
[349656432,1737359447169,-695.05,0.0002032,2]
[349656434,1737359447179,-466.13872779,0.0002032,2]
[349656436,1737359447188,-282.08921212,0.0002032,2]
[349656438,1737359447197,-956.85,0.0002032,2]
[349656440,1737359447207,-500.0,0.0002032,2]
[349656442,1737359447216,-500.0,0.0002032,2]
[349656444,1737359447225,-679.77,0.0002032,2]
[349656446,1737359447234,-1162.51,0.0002032,2]
[349656448,1737359447243,-500.0,0.0002032,2]
[349656450,1737359447252,-500.0,0.0002032,2]
[349656452,1737359447262,-500.0,0.0002032,2]
[349656454,1737359447271,-613.78,0.0002032,2]
[349656456,1737359447281,-500.0,0.0002032,2]
[349656458,1737359447290,-500.0,0.0002032,2]
[349656460,1737359447300,-998.73,0.0002032,2]
[349656461,1737359447309,-500.0,0.0002032,2]
[349656462,1737359447319,-500.0,0.0002032,2]
[349656464,1737359447328,-721.37,0.0002032,2]
[349656466,1737359447341,-803.78,0.0002032,2]
[349656468,1737359447350,-500.0,0.0002032,2]
[349656470,1737359447359,-554.74722128,0.0002032,2]
[349656472,1737359447368,-564.33,0.0002032,2]
[349656474,1737359447377,-500.0,0.0002032,2]
[349656476,1737359447386,-503.83,0.0002032,2]
[349656478,1737359447397,-500.0,0.0002032,2]
[349656480,1737359447409,-500.0,0.0002032,2]
[349656482,1737359447418,-876.13,0.0002032,2]
[349656484,1737359447427,-500.0,0.0002032,2]
[349656485,1737359447436,-500.0,0.0002032,2]
[349656488,1737359447446,-500.0,0.0002032,2]
[349656489,1737359447455,-500.0,0.0002032,2]
[349656492,1737359447465,-500.0,0.0002032,2]
[349656493,1737359447474,-591.89,0.0002032,2]
[349656494,1737359447484,-500.0,0.0002032,2]
[349656495,1737359447494,-500.0,0.0002032,2]
[349656496,1737359447503,-1170.98,0.0002032,2]
[349656497,1737359447512,-500.0,0.0002032,2]
[349656498,1737359447521,-500.0,0.0002032,2]
[349656499,1737359447531,-500.0,0.0002032,2]
[349656500,1737359447540,-500.0,0.0002032,2]
[349656501,1737359447550,-500.0,0.0002032,2]
[349656502,1737359447559,-1457.34,0.0002032,2]
[349656503,1737359447568,-1192.12,0.0002032,2]
[349656504,1737359447577,-1630.39,0.0002032,2]
[349656505,1737359447590,-500.0,0.0002032,2]
[349656506,1737359447600,-1752.84,0.0002032,2]
[349656507,1737359447609,-500.0,0.0002032,2]
[349656508,1737359447619,-500.0,0.0002032,2]
[349656509,1737359447628,-500.0,0.0002032,2]
[349656510,1737359447637,-776.12,0.0002032,2]
[349656511,1737359447647,-798.28,0.0002032,2]
[349656512,1737359447657,-500.0,0.0002032,2]
[349656513,1737359447666,-500.0,0.0002032,2]
[349656514,1737359447675,-500.0,0.0002032,2]
[349656515,1737359447684,-500.0,0.0002032,2]
[349656516,1737359447693,-621.6,0.0002032,2]
[349656517,1737359447702,-500.0,0.0002032,2]
[349656518,1737359447711,-1138.23,0.0002032,2]
[349656519,1737359447720,-500.0,0.0002032,2]
[349656520,1737359447730,-873.64,0.0002032,2]
[349656521,1737359447738,-500.0,0.0002032,2]
[349656522,1737359447747,-1081.27,0.0002032,2]
[349656523,1737359447756,-500.0,0.0002032,2]
[349656524,1737359447765,-500.0,0.0002032,2]
[349656525,1737359447774,-1328.3,0.0002032,2]
[349656526,1737359447783,-500.0,0.0002032,2]
[349656527,1737359447792,-760.12,0.0002032,2]
[349656528,1737359447802,-4201.07,0.0002032,2]
[349656529,1737359447811,-500.0,0.0002032,2]
[349656530,1737359447819,-1224.29,0.0002032,2]
[349656531,1737359447828,-736.71,0.0002032,2]
[349656532,1737359447840,-1940.39,0.0002032,2]
[349656533,1737359447849,-827.491924,0.0002032,2]
[349656534,1737359447858,-500.0,0.0002032,2]
[349656535,1737359447867,-709.33,0.0002032,2]
[349656536,1737359447876,-176.18279661,0.0002032,2]
[349656537,1737359447886,-500.0,0.0002032,2]
[349656538,1737359447895,-1825.22,0.0002032,2]
[349656539,1737359447904,-500.0,0.0002032,2]
[349656540,1737359447913,-632.12,0.0002032,2]
[349656541,1737359447922,-3582.35,0.0002032,2]
[349656542,1737359447931,-717.32,0.0002032,2]
[349656543,1737359447940,-1796.622825,0.0002032,2]
[349656544,1737359447949,-500.0,0.0002032,2]
[349656545,1737359447959,-500.0,0.0002032,2]
[349656546,1737359447968,-7720.87,0.0002032,2]
[349656547,1737359447977,-500.0,0.0002032,2]
[349656548,1737359447986,-500.0,0.0002032,2]
[349656549,1737359447995,-2283.23,0.0002032,2]
[349656550,1737359448003,-370.87057537,0.0002032,2]
[349656551,1737359448012,-2234.39,0.0002032,2]
[349656552,1737359448021,-236.57273217,0.0002032,2]
[349656553,1737359448030,-618.5,0.0002032,2]
[349656554,1737359448039,-500.0,0.0002032,2]
[349656555,1737359448048,-500.0,0.0002032,2]
[349656556,1737359448057,-713.08,0.0002032,2]
[349656557,1737359448066,-500.0,0.0002032,2]
[349656558,1737359448074,-500.0,0.0002032,2]
[349656559,1737359448085,-547.72,0.0002032,2]
[349656560,1737359448094,-577.42,0.0002032,2]
[349656561,1737359448104,-500.0,0.0002032,2]
[349656562,1737359448113,-200.0,0.0002032,2]
[349656563,1737359448122,-500.0,0.0002032,2]
[349656564,1737359448132,-1588.31,0.0002032,2]
[349656565,1737359448233,-1379.24,0.0002032,2]
[349656566,1737359448243,-1036.42,0.0002032,2]
[349656567,1737359448252,-500.0,0.0002032,2]
[349656568,1737359448262,-800.07,0.0002032,2]
[349656569,1737359448271,-1680.43,0.0002032,2]
[349656570,1737359448280,-3857.97,0.0002032,2]
[349656571,1737359448290,-766.22,0.0002032,2]
[349656572,1737359448299,-500.0,0.0002032,2]
[349656573,1737359448308,-500.0,0.0002032,2]
[349656574,1737359448317,-623.72,0.0002032,2]
[349656575,1737359448326,-862.26,0.0002032,2]
[349656576,1737359448338,-681.05,0.0002032,2]
[349656577,1737359448347,-651.15,0.0002032,2]
[349656578,1737359448356,-526.75,0.0002032,2]
[349656579,1737359448365,-1464.4,0.0002032,2]
[349656580,1737359448375,-500.0,0.0002032,2]
[349656581,1737359448384,-1742.5,0.0002032,2]
[349656582,1737359448394,-988.26,0.0002032,2]
[349656583,1737359448404,-500.0,0.0002032,2]
[349656584,1737359448416,-1929.02,0.0002032,2]
[349656585,1737359448426,-500.0,0.0002032,2]
[349656586,1737359448435,-500.0,0.0002032,2]
[349656587,1737359448444,-554.29,0.0002032,2]
[349656588,1737359448454,-500.0,0.0002032,2]
[349656589,1737359448464,-2608.99,0.0002032,2]
[349656590,1737359448473,-702.59,0.0002032,2]
[349656591,1737359448483,-500.0,0.0002032,2]
[349656592,1737359448493,-500.0,0.0002032,2]
[349656593,1737359448502,-500.0,0.0002032,2]
[349656594,1737359448512,-892.76,0.0002032,2]
[349656595,1737359448521,-1170.41,0.0002032,2]
[349656596,1737359448531,-2063.8,0.0002032,2]
[349656597,1737359448540,-3292.27,0.0002032,2]
[349656598,1737359448549,-500.0,0.0002032,2]
[349656599,1737359448558,-500.0,0.0002032,2]
[349656600,1737359448568,-500.0,0.0002032,2]
[349656601,1737359448577,-500.0,0.0002032,2]
[349656602,1737359448589,-3539.58,0.0002032,2]
[349656603,1737359448598,-697.16,0.0002032,2]
[349656604,1737359448608,-500.0,0.0002032,2]
[349656605,1737359448618,-500.0,0.0002032,2]
[349656606,1737359448627,-2023.85,0.0002032,2]
[349656607,1737359448637,-669.59,0.0002032,2]
[349656608,1737359448648,-500.0,0.0002032,2]
[349656609,1737359448657,-1075.27,0.0002032,2]
[349656610,1737359448667,-500.0,0.0002032,2]
[349656611,1737359448677,-3688.89,0.0002032,2]
[349656612,1737359448686,-488.07048772,0.0002032,2]
[349656613,1737359448696,-1038.42,0.0002032,2]
[349656614,1737359448705,-838.98,0.0002032,2]
[349656615,1737359448714,-5490.4,0.0002032,2]
[349656616,1737359448724,-1891.28,0.0002032,2]
[349656617,1737359448734,-2548.07,0.0002032,2]
[349656618,1737359448744,-1422.79,0.0002032,2]
[349656619,1737359448753,-500.0,0.0002032,2]
[349656620,1737359448762,-500.0,0.0002032,2]
[349656621,1737359448772,-500.0,0.0002032,2]
[349656622,1737359448781,-500.0,0.0002032,2]
[349656623,1737359448790,-500.0,0.0002032,2]
[349656624,1737359448800,-2090.87,0.0002032,2]
[349656625,1737359448809,-572.86,0.0002032,2]
[349656626,1737359448818,-2153.11,0.0002032,2]
[349656627,1737359448827,-400.0,0.00020356,2]
[349656628,1737359448838,-476.93045253,0.00020414,2]
[349656629,1737359448847,-192.0,0.000205,2]
[349656630,1737359448856,-563.66658582,0.0002051,2]
[349656631,1737359448865,-172.24577978,0.00020555,2]
[349656632,1737359448875,-500.0,0.00020593,2]
[349656633,1737359448884,-623.57,0.00020593,2]
[349656634,1737359448893,-500.0,0.00020593,2]
[349656635,1737359448902,-565.14,0.00020593,2]
[349656636,1737359448911,-568.28,0.00020593,2]
[349656637,1737359448920,-500.0,0.00020593,2]
[349656638,1737359448929,-500.0,0.00020593,2]
[349656639,1737359448938,-857.34,0.00020593,2]
[349656640,1737359448948,-500.0,0.00020593,2]
[349656641,1737359448958,-920.18,0.00020593,2]
[349656642,1737359448968,-500.0,0.00020593,2]
[349656643,1737359448977,-904.7,0.00020593,2]
[349656644,1737359448986,-500.0,0.00020593,2]
[349656645,1737359448996,-500.0,0.00020593,2]
[349656646,1737359449005,-500.0,0.00020593,2]
[349656647,1737359449015,-547.03,0.00020593,2]
[349656648,1737359449024,-500.0,0.00020593,2]
[349656649,1737359449033,-521.5,0.00020593,2]
[349656650,1737359449043,-674.17,0.00020593,2]
[349656651,1737359449052,-500.0,0.00020593,2]
[349656652,1737359449061,-986.2,0.00020593,2]
[349656653,1737359449071,-1227.55,0.00020593,2]
[349656654,1737359449080,-1198.63,0.00020593,2]
[349656655,1737359449091,-500.0,0.00020593,2]
[349656656,1737359449101,-618.51,0.00020593,2]
[349656657,1737359449110,-1043.44,0.00020593,2]
[349656658,1737359449120,-500.0,0.00020593,2]
[349656659,1737359449130,-1295.79,0.00020593,2]
[349656660,1737359449140,-500.0,0.00020593,2]
[349656661,1737359449150,-891.15,0.00020593,2]
[349656662,1737359449159,-500.0,0.00020593,2]
[349656663,1737359449168,-500.0,0.00020593,2]
[349656664,1737359449178,-500.0,0.00020593,2]
[349656665,1737359449188,-1542.54,0.00020593,2]
[349656666,1737359449197,-500.0,0.00020593,2]
[349656667,1737359449207,-868.61,0.00020593,2]
[349656668,1737359449217,-1199.92,0.00020593,2]
[349656669,1737359449227,-1570.7,0.00020593,2]
[349656670,1737359449237,-1171.48,0.00020593,2]
[349656671,1737359449248,-1179.9,0.00020593,2]
[349656672,1737359449258,-676.03,0.00020593,2]
[349656673,1737359449268,-1089.01,0.00020593,2]
[349656674,1737359449278,-1779.33,0.00020593,2]
[349656675,1737359449288,-1123.51,0.00020593,2]
[349656676,1737359449298,-824.59,0.00020593,2]
[349656677,1737359449307,-702.58,0.00020593,2]
[349656678,1737359449317,-1313.53,0.00020593,2]
[349656679,1737359449330,-500.0,0.00020593,2]
[349656680,1737359449346,-918.87,0.00020593,2]
[349656681,1737359449355,-3920.49,0.00020593,2]
[349656682,1737359449365,-2465.53,0.00020593,2]
[349656683,1737359449375,-500.0,0.00020593,2]
[349656684,1737359449385,-500.0,0.00020593,2]
[349656685,1737359449396,-729.31,0.00020593,2]
[349656686,1737359449407,-4948.6,0.00020593,2]
[349656687,1737359449418,-500.0,0.00020593,2]
[349656688,1737359449427,-217.46,0.00020593,2]
[349656689,1737359449437,-500.0,0.00020593,2]
[349656690,1737359449448,-500.0,0.00020593,2]
[349656691,1737359449458,-500.0,0.00020593,2]
[349656692,1737359449467,-500.0,0.00020593,2]
[349656693,1737359449477,-2166.66,0.00020593,2]
[349656694,1737359449487,-6379.85,0.00020593,2]
[349656695,1737359449496,-1054.71,0.00020593,2]
[349656696,1737359449506,-6445.67,0.00020593,2]
[349656697,1737359449515,-1445.58,0.00020593,2]
[349656698,1737359449525,-500.0,0.00020593,2]
[349656699,1737359449534,-2274.48,0.00020593,2]
[349656700,1737359449544,-1936.82,0.00020593,2]
[349656701,1737359449553,-1198.54,0.00020593,2]
[349656702,1737359449562,-2588.21,0.00020593,2]
[349656703,1737359449573,-2696.65,0.00020593,2]
[349656704,1737359449584,-1011.45,0.00020593,2]
[349656705,1737359449593,-500.0,0.00020593,2]
[349656706,1737359449603,-1258.39,0.00020593,2]
[349656707,1737359449612,-1079.0,0.00020593,2]
[349656708,1737359449621,-1982.52,0.00020593,2]
[349656709,1737359449630,-500.0,0.00020593,2]
[349656710,1737359449640,-1473.34,0.00020593,2]
[349656711,1737359449650,-779.6,0.00020593,2]
[349656712,1737359449745,-817.79,0.00020593,2]
[349656713,1737359449755,-4398.49,0.00020593,2]
[349656714,1737359449764,-926.31,0.00020593,2]
[349656715,1737359449773,-1203.2,0.00020593,2]
[349656716,1737359449782,-500.0,0.00020593,2]
[349656717,1737359449791,-710.98,0.00020593,2]
[349656718,1737359449800,-500.0,0.00020593,2]
[349656719,1737359449809,-2061.96,0.00020593,2]
[349656720,1737359449818,-1482.39,0.00020593,2]
[349656721,1737359449828,-805.2,0.00020593,2]
[349656722,1737359449842,-500.0,0.00020593,2]
[349656723,1737359449851,-548.96,0.00020593,2]
[349656724,1737359449861,-3448.0,0.00020593,2]
[349656725,1737359449870,-1177.2,0.00020593,2]
[349656726,1737359449879,-1792.51,0.00020593,2]
[349656727,1737359449888,-2000.07,0.00020593,2]
[349656728,1737359449898,-951.51,0.00020593,2]
[349656729,1737359449907,-500.0,0.00020593,2]
[349656730,1737359449917,-1668.68,0.00020593,2]
[349656731,1737359449926,-500.0,0.00020593,2]
[349656732,1737359449935,-500.0,0.00020593,2]
[349656733,1737359449944,-894.2,0.00020593,2]
[349656734,1737359449953,-907.24,0.00020593,2]
[349656735,1737359449963,-2517.18,0.00020593,2]
[349656736,1737359449973,-884.91,0.00020593,2]
[349656737,1737359449982,-500.0,0.00020593,2]
[349656738,1737359449992,-500.0,0.00020593,2]
[349656739,1737359450001,-2474.52,0.00020593,2]
[349656740,1737359450010,-1054.83,0.00020593,2]
[349656741,1737359450019,-1387.21,0.00020593,2]
[349656742,1737359450028,-620.97,0.00020593,2]
[349656743,1737359450037,-500.0,0.00020593,2]
[349656744,1737359450046,-500.0,0.00020593,2]
[349656745,1737359450055,-500.0,0.00020593,2]
[349656746,1737359450066,-681.24,0.00020593,2]
[349656747,1737359450075,-1169.54,0.00020593,2]
[349656748,1737359450085,-500.0,0.00020593,2]
[349656749,1737359450095,-500.0,0.00020594,2]
[349656750,1737359450104,-594.3,0.00020594,2]
[349656751,1737359450113,-500.0,0.00020594,2]
[349656752,1737359450122,-500.0,0.00020594,2]
[349656753,1737359450131,-746.35,0.00020594,2]
[349656754,1737359450141,-500.0,0.00020594,2]
[349656755,1737359450151,-500.0,0.00020594,2]
[349656756,1737359450161,-307.4611861,0.00020594,2]
[349656757,1737359450171,-156.97171903,0.00020594,2]
[349656758,1737359450180,-695.05,0.00020594,2]
[349656759,1737359450190,-956.85,0.00020594,2]
[349656760,1737359450199,-500.0,0.00020594,2]
[349656761,1737359450209,-500.0,0.00020594,2]
[349656762,1737359450218,-679.77,0.00020594,2]
[349656763,1737359450228,-1162.51,0.00020594,2]
[349656764,1737359450237,-500.0,0.00020594,2]
[349656765,1737359450247,-500.0,0.00020594,2]
[349656766,1737359450256,-500.0,0.00020594,2]
[349656767,1737359450265,-613.78,0.00020594,2]
[349656768,1737359450274,-500.0,0.00020594,2]
[349656769,1737359450283,-500.0,0.00020594,2]
[349656770,1737359450292,-998.73,0.00020594,2]
[349656771,1737359450301,-500.0,0.00020594,2]
[349656772,1737359450310,-721.37,0.00020594,2]
[349656773,1737359450319,-803.78,0.00020594,2]
[349656774,1737359450328,-500.0,0.00020594,2]
[349656775,1737359450341,-564.33,0.00020594,2]
[349656776,1737359450350,-500.0,0.00020594,2]
[349656777,1737359450359,-503.83,0.00020594,2]
[349656778,1737359450369,-500.0,0.00020594,2]
[349656779,1737359450378,-500.0,0.00020594,2]
[349656780,1737359450388,-876.13,0.00020594,2]
[349656781,1737359450397,-500.0,0.00020594,2]
[349656782,1737359450407,-500.0,0.00020594,2]
[349656783,1737359450418,-500.0,0.00020594,2]
[349656784,1737359450427,-500.0,0.00020594,2]
[349656785,1737359450436,-500.0,0.00020594,2]
[349656786,1737359450446,-591.89,0.00020594,2]
[349656787,1737359450455,-500.0,0.00020594,2]
[349656788,1737359450465,-500.0,0.00020594,2]
[349656789,1737359450474,-1170.98,0.00020594,2]
[349656790,1737359450484,-500.0,0.00020594,2]
[349656791,1737359450494,-500.0,0.00020594,2]
[349656792,1737359450503,-500.0,0.00020594,2]
[349656793,1737359450512,-500.0,0.00020594,2]
[349656794,1737359450521,-500.0,0.00020594,2]
[349656795,1737359450531,-1457.34,0.00020594,2]
[349656796,1737359450540,-1192.12,0.00020594,2]
[349656797,1737359450552,-1630.39,0.00020594,2]
[349656798,1737359450561,-500.0,0.00020594,2]
[349656799,1737359450570,-1752.84,0.00020594,2]
[349656800,1737359450581,-500.0,0.00020594,2]
[349656801,1737359450592,-500.0,0.00020594,2]
[349656802,1737359450600,-500.0,0.00020594,2]
[349656803,1737359450610,-776.12,0.00020594,2]
[349656804,1737359450619,-798.28,0.00020594,2]
[349656805,1737359450628,-500.0,0.00020594,2]
[349656806,1737359450638,-500.0,0.00020594,2]
[349656807,1737359450647,-621.6,0.00020594,2]
[349656808,1737359450656,-500.0,0.00020594,2]
[349656809,1737359450665,-1138.23,0.00020594,2]
[349656810,1737359450675,-500.0,0.00020594,2]
[349656811,1737359450684,-873.64,0.00020594,2]
[349656812,1737359450693,-1081.27,0.00020594,2]
[349656813,1737359450702,-500.0,0.00020594,2]
[349656814,1737359450711,-500.0,0.00020594,2]
[349656815,1737359450720,-1328.3,0.00020594,2]
[349656816,1737359450729,-500.0,0.00020594,2]
[349656817,1737359450738,-760.12,0.00020594,2]
[349656818,1737359450747,-4201.07,0.00020594,2]
[349656819,1737359450756,-500.0,0.00020594,2]
[349656820,1737359450765,-1224.29,0.00020594,2]
[349656821,1737359450774,-736.71,0.00020594,2]